fUST/lending_fUST_20240119
["ID","MTS","AMOUNT","RATE_DAILY","PERIOD"]
[312167062,1705675841905,-500.0,0.00027945,2]
[312167065,1705675841915,-823.09,0.00027945,2]
[312167069,1705675841928,-513.87708862,0.00027945,2]
[312167072,1705675841937,-500.0,0.00027945,2]
[312167074,1705675841948,-500.0,0.00027945,2]
[312167077,1705675841957,-500.0,0.00027945,2]
[312167080,1705675841967,-500.0,0.00027945,2]
[312167083,1705675841976,-500.0,0.00027945,2]
[312167086,1705675841986,-1586.07,0.00027945,2]
[312167089,1705675841995,-785.26,0.00027945,2]
[312167092,1705675842006,-570.6,0.00027945,2]
[312167095,1705675842016,-500.0,0.00027945,2]
[312167098,1705675842026,-1245.74,0.00027945,2]
[312167103,1705675842036,-500.0,0.00027945,2]
[312167106,1705675842047,-3543.24,0.00027945,2]
[312167108,1705675842056,-500.0,0.00027945,2]
[312167110,1705675842066,-638.36,0.00027945,2]
[312167113,1705675842076,-500.0,0.00027945,2]
[312167118,1705675842087,-640.28668045,0.00027945,2]
[312167121,1705675842097,-532.85,0.00027945,2]
[312167122,1705675842111,-500.0,0.00027945,2]
[312167125,1705675842121,-1024.49,0.00027945,2]
[312167128,1705675842131,-500.0,0.00027945,2]
[312167131,1705675842141,-500.0,0.00027945,2]
[312167134,1705675842151,-500.0,0.00027945,2]
[312167137,1705675842160,-500.0,0.00027945,2]
[312167140,1705675842172,-615.17,0.00027945,2]
[312167143,1705675842182,-500.0,0.00027945,2]
[312167147,1705675842193,-500.0,0.00027945,2]
[312167150,1705675842202,-306.0,0.00027945,2]
[312167152,1705675842213,-620.00015818,0.00027997,2]
[312167155,1705675842223,-290.08228321,0.00028,2]
[312167159,1705675842235,-154.84515485,0.00028,10]
[312167162,1705675842245,-1500.0,0.00028,2]
[312167165,1705675842254,-502.1295898,0.00028,2]
[312167168,1705675842264,-500.0,0.00028218,2]
[312167190,1705675842351,-500.0,0.00028218,2]
[312167193,1705675842371,-500.0,0.00028218,2]
[312167196,1705675842381,-559.08,0.00028219,2]
[312167200,1705675842392,-500.0,0.00028219,2]
[312167206,1705675842403,-500.0,0.00028219,2]
[312167211,1705675842412,-500.0,0.00028219,2]
[312167215,1705675842425,-568.55,0.00028219,2]
[312167218,1705675842436,-500.0,0.00028219,2]
[312167222,1705675842445,-693.97,0.00028219,2]
[312167226,1705675842456,-500.0,0.00028219,2]
[312167230,1705675842466,-509.45,0.00028219,2]
[312167232,1705675842477,-1743.07,0.00028219,2]
[312167235,1705675842487,-500.0,0.00028219,2]
[312167236,1705675842497,-740.42,0.00028219,2]
[312167239,1705675842507,-500.0,0.00028219,2]
[312167242,1705675842517,-500.0,0.00028219,2]
[312167244,1705675842527,-500.0,0.00028219,2]
[312167247,1705675842537,-500.0,0.00028219,2]
[312167250,1705675842547,-500.0,0.00028219,2]
[312167253,1705675842557,-500.0,0.00028219,2]
[312167256,1705675842567,-500.0,0.00028219,2]
[312167259,1705675842577,-806.25,0.00028219,2]
[312167262,1705675842587,-4557.59,0.00028219,2]
[312167265,1705675842596,-313.02,0.00028219,2]
[312167268,1705675842607,-811.37,0.00028219,2]
[312167271,1705675842617,-304.34803325,0.00028219,2]
[312167274,1705675842627,-721.18,0.00028219,2]
[312167277,1705675842637,-1577.97,0.00028219,2]
[312167280,1705675842646,-3052.55,0.00028219,2]
[312167283,1705675842655,-3795.57,0.00028219,2]
[312167286,1705675842665,-503.81106822,0.00028219,2]
[312167288,1705675842678,-605.73,0.00028219,2]
[312167290,1705675842688,-500.0,0.00028219,2]
[312167292,1705675842698,-500.0,0.00028219,2]
[312167294,1705675842708,-17234.78,0.00028219,2]
[312167296,1705675842718,-3133.27,0.00028219,2]
[312167298,1705675842727,-500.0,0.00028219,2]
[312167300,1705675842737,-500.0,0.00028219,2]
[312167302,1705675842746,-500.0,0.00028219,2]
[312167303,1705675842756,-8546.08,0.00028219,2]
[312167305,1705675842766,-500.0,0.00028219,2]
[312167307,1705675842776,-823.09,0.00028219,2]
[312167309,1705675842785,-500.0,0.00028219,2]
[312167312,1705675842796,-500.0,0.00028219,2]
[312167314,1705675842806,-500.0,0.00028219,2]
[312167315,1705675842816,-500.0,0.00028219,2]
[312167318,1705675842826,-500.0,0.00028219,2]
[312167319,1705675842836,-1586.07,0.00028219,2]
[312167321,1705675842846,-785.26,0.00028219,2]
[312167323,1705675842856,-570.6,0.00028219,2]
[312167325,1705675842866,-1245.74,0.00028219,2]
[312167327,1705675842875,-500.0,0.00028219,2]
[312167329,1705675842887,-3543.24,0.00028219,2]
[312167331,1705675842897,-638.36,0.00028219,2]
[312167333,1705675842907,-500.0,0.00028219,2]
[312167335,1705675842917,-532.85,0.00028219,2]
[312167337,1705675842930,-500.0,0.00028219,2]
[312167339,1705675842940,-1024.49,0.00028219,2]
[312167341,1705675842950,-637.50902784,0.00028219,2]
[312167343,1705675842960,-509.23576103,0.00028219,2]
[312167345,1705675842970,-500.0,0.00028219,2]
[312167348,1705675842979,-500.0,0.00028219,2]
[312167351,1705675842989,-615.17,0.00028219,2]
[312167354,1705675842999,-510.49124954,0.00028219,2]
[312167357,1705675843009,-500.0,0.00028219,2]
[312167359,1705675843018,-306.0,0.00028219,2]
[312167361,1705675843029,-153.0,0.00028219,2]
[312167363,1705675843040,-153.0,0.00028219,2]
[312167365,1705675843049,-153.0,0.00028219,2]
[312167367,1705675843059,-194.73467439,0.00028339,2]
[312167369,1705675843069,-370.95134708,0.00028438,2]
[312167371,1705675843078,-418.06155676,0.00028438,2]
[312167373,1705675843088,-67940.86646118,0.00028439,4]
[312167375,1705675843098,-50000.0,0.00028439,4]
[312167377,1705675843108,-50000.0,0.00028439,4]
[312167379,1705675843118,-57408.45618637,0.00028439,4]
[312167381,1705675843128,-7037.63060847,0.00028439,3]
[312167383,1705675843138,-19875.73972848,0.00028439,3]
[312167385,1705675843147,-269.89110616,0.00028491,7]
[312167387,1705675843158,-258.52473764,0.00028491,2]
[312167389,1705675843167,-155.3172267,0.00028492,2]
[312167391,1705675843181,-559.08,0.00028493,2]
[312167393,1705675843190,-309.81662381,0.00028493,2]
[312167395,1705675843200,-500.0,0.00028493,2]
[312167397,1705675843211,-500.0,0.00028493,2]
[312167399,1705675843221,-568.55,0.00028493,2]
[312167401,1705675843234,-500.0,0.00028493,2]
[312167403,1705675843244,-693.97,0.00028493,2]
[312167405,1705675843254,-168.22661949,0.00028493,2]
[312167407,1705675843263,-509.45,0.00028493,2]
[312167409,1705675843274,-1743.07,0.00028493,2]
[312167411,1705675843284,-500.0,0.00028493,2]
[312167413,1705675843294,-740.42,0.00028493,2]
[312167415,1705675843304,-500.0,0.00028493,2]
[312167417,1705675843315,-500.0,0.00028493,2]
[312167419,1705675843325,-557.39952533,0.00028493,2]
[312167421,1705675843335,-204.46320999,0.00028493,2]
[312167423,1705675843345,-500.0,0.00028493,2]
[312167425,1705675843355,-500.0,0.00028493,2]
[312167427,1705675843365,-806.25,0.00028493,2]
[312167429,1705675843376,-4557.59,0.00028493,2]
[312167431,1705675843385,-811.37,0.00028493,2]
[312167432,1705675843395,-721.18,0.00028493,2]
[312167434,1705675843405,-1577.97,0.00028493,2]
[312167436,1705675843415,-3052.55,0.00028493,2]
[312167438,1705675843429,-3795.57,0.00028493,2]
[312167440,1705675843438,-605.73,0.00028493,2]
[312167442,1705675843447,-500.0,0.00028493,2]
[312167444,1705675843456,-500.0,0.00028493,2]
[312167446,1705675843466,-17234.78,0.00028493,2]
[312167448,1705675843475,-3133.27,0.00028493,2]
[312167450,1705675843484,-500.0,0.00028493,2]
[312167452,1705675843494,-500.0,0.00028493,2]
[312167454,1705675843503,-205.57,0.00028493,2]
[312167456,1705675843513,-4210.59582684,0.00028493,2]
[312167465,1705675843595,-4335.48417316,0.00028493,2]
[312167467,1705675843605,-500.0,0.00028493,2]
[312167469,1705675843614,-823.09,0.00028493,2]
[312167471,1705675843624,-500.0,0.00028493,2]
[312167473,1705675843633,-500.0,0.00028493,2]
[312167475,1705675843642,-500.0,0.00028493,2]
[312167477,1705675843652,-552.00331859,0.00028493,2]
[312167479,1705675843661,-1586.07,0.00028493,2]
[312167481,1705675843677,-785.26,0.00028493,2]
[312167483,1705675843687,-120.94203113,0.00028493,2]
[312167505,1705675843908,-500.0,0.00027397,2]
[312167507,1705675843918,-57.81864135,0.00027397,2]
[312167509,1705675843934,-442.18135865,0.00027397,2]
[312167511,1705675843944,-768.04203241,0.00027945,2]
[312167513,1705675843957,-666.66796759,0.00027945,2]
[312167515,1705675843967,-1354.34,0.00027945,2]
[312167517,1705675843977,-1354.34,0.00028219,2]
[312167518,1705675843986,-1434.71,0.00028219,2]
[312167519,1705675843996,-449.65796887,0.00028493,2]
[312167520,1705675844006,-1245.74,0.00028493,2]
[312167521,1705675844016,-3543.24,0.00028493,2]
[312167522,1705675844027,-638.36,0.00028493,2]
[312167523,1705675844036,-500.0,0.00028493,2]
[312167524,1705675844045,-532.85,0.00028493,2]
[312167525,1705675844055,-500.0,0.00028493,2]
[312167526,1705675844064,-1024.49,0.00028493,2]
[312167527,1705675844074,-500.0,0.00028493,2]
[312167528,1705675844084,-529.23,0.00028493,2]
[312167529,1705675844093,-615.17,0.00028493,2]
[312167530,1705675844102,-500.0,0.00028493,2]
[312167531,1705675844112,-1434.71,0.00028493,2]
[312167532,1705675844121,-1354.34,0.00028493,2]
[312167533,1705675844130,-153.0,0.00028493,2]
[312167534,1705675844139,-154.3668201,0.00028493,2]
[312167535,1705675844149,-360.4535173,0.00028493,2]
[312167536,1705675844159,-306.5914831,0.00028493,2]
[312167537,1705675844168,-306.1965757,0.00028493,2]
[312167538,1705675844180,-153.0,0.00028493,2]
[312167539,1705675844190,-153.0,0.00028493,2]
[312167540,1705675844200,-153.0,0.00028493,2]
[312167541,1705675844212,-419.494999,0.00028493,2]
[312167542,1705675844223,-153.0,0.00028493,2]
[312167543,1705675844235,-153.0,0.00028493,2]
[312167544,1705675844328,-199.0432224,0.00028493,2]
[312167545,1705675844338,-153.0,0.00028493,2]
[312167546,1705675844348,-153.0,0.00028493,2]
[312167547,1705675844358,-199.0432224,0.00028493,2]
[312167548,1705675844367,-153.0,0.00028493,2]
[312167550,1705675844377,-199.0432224,0.00028493,2]
[312167552,1705675844387,-153.0,0.00028493,2]
[312167554,1705675844397,-153.0,0.00028493,2]
[312167556,1705675844407,-153.0,0.00028493,2]
[312167558,1705675844416,-153.0,0.00028493,2]
[312167559,1705675844429,-199.0432224,0.00028493,2]
[312167561,1705675844439,-153.0,0.00028493,2]
[312167563,1705675844448,-199.0432224,0.00028493,2]
[312167565,1705675844457,-153.0,0.00028493,2]
[312167567,1705675844466,-153.0,0.00028493,2]
[312167569,1705675844476,-199.0432224,0.00028493,2]
[312167570,1705675844485,-153.0,0.00028493,2]
[312167572,1705675844495,-153.0,0.00028493,2]
[312167574,1705675844504,-199.0432224,0.00028493,2]
[312167576,1705675844514,-153.0,0.00028493,2]
[312167578,1705675844523,-199.0432224,0.00028493,2]
[312167580,1705675844533,-199.0432224,0.00028493,2]
[312167582,1705675844542,-199.0432224,0.00028493,2]
[312167584,1705675844552,-177.5759096,0.00028493,2]
[312167586,1705675844561,-150.0,0.000286,2]
[312167588,1705675844571,-151.69082327,0.00028643,2]
[312167590,1705675844580,-4192.77804006,0.00028667,2]
[312167594,1705675844617,-34367.5756331,0.00028667,2]
[312167596,1705675844627,-280.0,0.00028684,15]
[312167598,1705675844637,-2871.42236462,0.00028697,2]
[312167600,1705675844648,-154.9690062,0.00028698,2]
[312167602,1705675844658,-186.91853974,0.00028698,2]
[312167748,1705675845969,-632.19048269,0.00027397,2]
[312167750,1705675845980,-2846.67,0.00027397,2]
[312167752,1705675845991,-2846.67,0.00027671,2]
[312167754,1705675846001,-199.0432224,0.00027671,2]
[312167756,1705675846011,-4657.54,0.00028429,3]
[312167758,1705675846021,-7766.26922979,0.00028698,2]
[312167760,1705675846030,-8754.07446216,0.00028698,2]
[312167762,1705675846040,-737.62482725,0.00028698,2]
[312167764,1705675846050,-36931.7299546,0.00028698,2]
[312167766,1705675846060,-20856.74094131,0.00028699,2]
[312167768,1705675846071,-1500.0,0.000287,2]
[312167771,1705675846080,-1500.0,0.000287,2]
[312167774,1705675846091,-1500.0,0.000287,2]
[312167776,1705675846100,-1500.0,0.000287,2]
[312167779,1705675846110,-1500.0,0.000287,2]
[312167781,1705675846120,-1603.5,0.000287,2]
[312167783,1705675846130,-255.22923267,0.00028701,3]
[312167785,1705675846139,-10000.0,0.00028723,2]
[312167787,1705675846149,-10000.0,0.00028723,2]
[312167789,1705675846158,-10000.0,0.00028723,2]
[312167791,1705675846168,-10000.0,0.00028723,2]
[312167793,1705675846180,-151.0,0.00028723,2]
[312167795,1705675846190,-151.0,0.00028723,2]
[312167797,1705675846200,-559.08,0.00028767,2]
[312167799,1705675846212,-500.0,0.00028767,2]
[312167800,1705675846221,-500.0,0.00028767,2]
[312167801,1705675846232,-568.55,0.00028767,2]
[312167802,1705675846243,-186.75540757,0.00028767,2]
[312167804,1705675846253,-693.97,0.00028767,2]
[312167805,1705675846262,-509.45,0.00028767,2]
[312167807,1705675846273,-1743.07,0.00028767,2]
[312167808,1705675846283,-500.0,0.00028767,2]
[312167810,1705675846293,-740.42,0.00028767,2]
[312167811,1705675846304,-500.0,0.00028767,2]
[312167813,1705675846315,-500.0,0.00028767,2]
[312167814,1705675846326,-500.0,0.00028767,2]
[312167815,1705675846337,-500.0,0.00028767,2]
[312167816,1705675846347,-806.25,0.00028767,2]
[312167817,1705675846358,-4557.59,0.00028767,2]
[312167818,1705675846368,-811.37,0.00028767,2]
[312167819,1705675846378,-721.18,0.00028767,2]
[312167820,1705675846389,-1577.97,0.00028767,2]
[312167821,1705675846399,-605.73,0.00028767,2]
[312167822,1705675846410,-500.0,0.00028767,2]
[312167823,1705675846421,-500.0,0.00028767,2]
[312167824,1705675846433,-17234.78,0.00028767,2]
[312167825,1705675846444,-3133.27,0.00028767,2]
[312167826,1705675846454,-500.0,0.00028767,2]
[312167827,1705675846464,-8546.08,0.00028767,2]
[312167828,1705675846474,-427.33355453,0.00028767,2]
[312167829,1705675846483,-823.09,0.00028767,2]
[312167830,1705675846493,-500.0,0.00028767,2]
[312167831,1705675846503,-500.0,0.00028767,2]
[312167832,1705675846513,-500.0,0.00028767,2]
[312167833,1705675846523,-1586.07,0.00028767,2]
[312167834,1705675846532,-785.26,0.00028767,2]
[312167835,1705675846542,-570.6,0.00028767,2]
[312167836,1705675846553,-1245.74,0.00028767,2]
[312167837,1705675846563,-3543.24,0.00028767,2]
[312167838,1705675846572,-638.36,0.00028767,2]
[312167839,1705675846582,-500.0,0.00028767,2]
[312167840,1705675846591,-532.85,0.00028767,2]
[312167841,1705675846601,-500.0,0.00028767,2]
[312167842,1705675846610,-1024.49,0.00028767,2]
[312167843,1705675846620,-469.65033522,0.00028767,2]
[312167993,1705676952924,-787.34773645,0.00024631,2]
[312167994,1705676952945,-1265.98341186,0.00024632,2]
[312167995,1705676952966,-1763.93265691,0.00024633,2]
[312167996,1705676952988,-23678.88910762,0.00024643,2]
[312167997,1705676956107,-1001.87135752,0.00024643,2]
[312168075,1705677034576,-219.23953486,0.00024643,2]
[312168077,1705677034587,-460.828415,0.00024695,2]
[312168079,1705677034598,-498.00832139,0.0002495,5]
[312168080,1705677034608,-426.65,0.00025533,2]
[312168082,1705677034620,-200.0,0.00025874,7]
[312168085,1705677034629,-155.18291378,0.00025918,2]
[312168087,1705677034640,-2461.7804253,0.00026598,2]
[312168088,1705677034650,-1500.0,0.00027,2]
[312168091,1705677034660,-194.73467439,0.00027297,2]
[312168093,1705677034669,-3968.67,0.00027387,3]
[312168095,1705677034679,-258.52473764,0.00027395,2]
[312168097,1705677034689,-1580.81290041,0.00027395,2]
[312168099,1705677034699,-1162.84236601,0.00027395,2]
[312168101,1705677034710,-1721.06391311,0.00027395,2]
[312168103,1705677034720,-787.34773645,0.00027395,2]
[312168106,1705677034730,-155.3172267,0.00027396,2]
[312168116,1705677034852,-269.89110616,0.00027396,7]
[312168117,1705677034864,-360.57824969,0.00027396,2]
[312168119,1705677034874,-537.13073992,0.00027396,2]
[312168120,1705677034884,-214.85229596,0.00027396,2]
[312168121,1705677034893,-500.0,0.00027396,2]
[312168123,1705677034903,-549.373813,0.00027396,2]
[312168125,1705677034913,-500.0,0.00027396,2]
[312168127,1705677034922,-500.0,0.00027396,2]
[312168129,1705677034932,-500.0,0.00027396,2]
[312168131,1705677034942,-344.8278701,0.00027396,2]
[312168133,1705677034952,-500.00000001,0.00027396,2]
[312168135,1705677034961,-499.99999999,0.00027396,2]
[312168137,1705677034970,-500.0,0.00027396,2]
[312168140,1705677034980,-500.0,0.00027396,2]
[312168141,1705677034990,-437.71176257,0.00027396,2]
[312168144,1705677035000,-491.34924926,0.00027396,2]
[312168145,1705677035010,-596.81193324,0.00027396,2]
[312168147,1705677035020,-500.0,0.00027396,2]
[312168149,1705677035030,-500.0,0.00027397,2]
[312168152,1705677035042,-500.0,0.00027397,2]
[312168153,1705677035053,-500.0,0.00027397,2]
[312168155,1705677035063,-500.0,0.00027397,2]
[312168157,1705677035073,-500.0,0.00027397,2]
[312168159,1705677035083,-500.0,0.00027397,2]
[312168161,1705677035093,-500.0,0.00027397,2]
[312168163,1705677035104,-500.0,0.00027397,2]
[312168165,1705677035115,-500.0,0.00027397,2]
[312168167,1705677035125,-500.0,0.00027397,2]
[312168168,1705677035135,-500.0,0.00027397,2]
[312168171,1705677035146,-500.0,0.00027397,2]
[312168172,1705677035157,-500.0,0.00027397,2]
[312168174,1705677035168,-500.0,0.00027397,2]
[312168176,1705677035178,-500.0,0.00027397,2]
[312168178,1705677035188,-586.54466235,0.00027397,2]
[312168180,1705677035199,-500.0,0.00027397,2]
[312168182,1705677035209,-500.0,0.00027397,2]
[312168183,1705677035219,-500.0,0.00027397,2]
[312168186,1705677035229,-507.59096993,0.00027397,2]
[312168187,1705677035239,-500.0,0.00027397,2]
[312168189,1705677035250,-426.88797914,0.00027397,2]
[312168192,1705677035260,-653.13,0.00027397,2]
[312168193,1705677035271,-816.01,0.00027397,2]
[312168196,1705677035281,-500.0,0.00027397,2]
[312168197,1705677035291,-472.61612095,0.00027397,2]
[312168199,1705677035302,-500.0,0.00027397,2]
[312168202,1705677035312,-500.0,0.00027397,2]
[312168203,1705677035322,-151.48630786,0.00027397,2]
[312168205,1705677035333,-500.0,0.00027397,2]
[312168207,1705677035343,-500.0,0.00027397,2]
[312168208,1705677035353,-500.0,0.00027397,2]
[312168209,1705677035364,-500.0,0.00027397,2]
[312168210,1705677035375,-202.65450831,0.00027397,2]
[312168211,1705677035385,-500.0,0.00027397,2]
[312168212,1705677035395,-500.0,0.00027397,2]
[312168213,1705677035405,-1000.0,0.00027397,2]
[312168214,1705677035416,-500.0,0.00027397,2]
[312168215,1705677035426,-500.0,0.00027397,2]
[312168216,1705677035436,-502.11256067,0.00027397,2]
[312168217,1705677035446,-500.0,0.00027397,2]
[312168218,1705677035456,-500.0,0.00027397,2]
[312168219,1705677035466,-501.49907098,0.00027397,2]
[312168220,1705677035476,-500.0,0.00027397,2]
[312168221,1705677035488,-500.0,0.00027397,2]
[312168222,1705677035504,-500.47571973,0.00027397,2]
[312168223,1705677035517,-500.0,0.00027397,2]
[312168224,1705677035537,-500.0,0.00027397,2]
[312168225,1705677035547,-500.0,0.00027397,2]
[312168226,1705677035558,-500.0,0.00027397,2]
[312168227,1705677035568,-500.0,0.00027397,2]
[312168228,1705677035578,-500.0,0.00027397,2]
[312168229,1705677035590,-519.12215261,0.00027397,2]
[312168230,1705677035600,-500.0,0.00027397,2]
[312168231,1705677035614,-500.0,0.00027397,2]
[312168232,1705677035624,-500.0,0.00027397,2]
[312168233,1705677035634,-501.94234063,0.00027397,2]
[312168234,1705677035644,-512.50623965,0.00027397,2]
[312168235,1705677035654,-610.21,0.00027397,2]
[312168236,1705677035665,-505.63003391,0.00027397,2]
[312168237,1705677035675,-535.78094662,0.00027397,2]
[312168238,1705677035686,-597.89688025,0.00027397,2]
[312168239,1705677035696,-500.0,0.00027397,2]
[312168240,1705677035707,-501.48152421,0.00027397,2]
[312168241,1705677035717,-500.0,0.00027397,2]
[312168242,1705677035728,-500.0,0.00027397,2]
[312168243,1705677035738,-500.0,0.00027397,2]
[312168244,1705677035748,-500.0,0.00027397,2]
[312168245,1705677035758,-509.90109657,0.00027397,2]
[312168246,1705677035769,-585.9606387,0.00027397,2]
[312168247,1705677035779,-500.0,0.00027397,2]
[312168248,1705677035789,-500.0,0.00027397,2]
[312168249,1705677035799,-500.0,0.00027397,2]
[312168250,1705677035810,-500.0,0.00027397,2]
[312168251,1705677035820,-502.35871173,0.00027397,2]
[312168252,1705677035830,-500.0,0.00027397,2]
[312168253,1705677035841,-500.0,0.00027397,2]
[312168254,1705677035851,-1402.57,0.00027397,2]
[312168255,1705677035861,-500.0,0.00027397,2]
[312168256,1705677035872,-500.0,0.00027397,2]
[312168257,1705677035882,-776.02,0.00027397,2]
[312168258,1705677035893,-500.0,0.00027397,2]
[312168259,1705677035903,-482.66606596,0.00027397,2]
[312168260,1705677035913,-500.0,0.00027397,2]
[312168261,1705677035923,-500.0,0.00027397,2]
[312168262,1705677035933,-500.0,0.00027397,2]
[312168263,1705677035943,-500.0,0.00027397,2]
[312168264,1705677035953,-314.80329528,0.00027397,2]
[312168265,1705677035963,-734.07,0.00027397,2]
[312168266,1705677035973,-2118.33,0.00027397,2]
[312168267,1705677035984,-500.0,0.00027397,2]
[312168268,1705677035994,-500.0,0.00027397,2]
[312168269,1705677036005,-500.0,0.00027397,2]
[312168270,1705677036015,-500.0,0.00027397,2]
[312168271,1705677036025,-500.0,0.00027397,2]
[312168272,1705677036035,-500.0,0.00027397,2]
[312168273,1705677036045,-500.0,0.00027397,2]
[312168274,1705677036055,-500.0,0.00027397,2]
[312168275,1705677036066,-500.0,0.00027397,2]
[312168276,1705677036076,-502.1634203,0.00027397,2]
[312168277,1705677036086,-500.0,0.00027397,2]
[312168278,1705677036097,-500.0,0.00027397,2]
[312168279,1705677036107,-500.0,0.00027397,2]
[312168280,1705677036118,-500.0,0.00027397,2]
[312168281,1705677036129,-500.0,0.00027397,2]
[312168282,1705677036139,-500.0,0.00027397,2]
[312168283,1705677036150,-503.71487664,0.00027397,2]
[312168284,1705677036160,-500.0,0.00027397,2]
[312168285,1705677036170,-500.0,0.00027397,14]
[312168286,1705677036182,-500.0,0.00027397,2]
[312168287,1705677036192,-500.0,0.00027397,2]
[312168288,1705677036203,-500.0,0.00027397,2]
[312168289,1705677036213,-500.0,0.00027397,2]
[312168290,1705677036223,-500.41281024,0.00027397,2]
[312168291,1705677036233,-500.0,0.00027397,2]
[312168292,1705677036244,-500.0,0.00027397,2]
[312168293,1705677036254,-500.0,0.00027397,2]
[312168294,1705677036264,-500.0,0.00027397,2]
[312168295,1705677036275,-500.0,0.00027397,2]
[312168296,1705677036285,-501.42981573,0.00027397,2]
[312168297,1705677036296,-500.0,0.00027397,2]
[312168298,1705677036306,-502.95572955,0.00027397,2]
[312168299,1705677036316,-500.0,0.00027397,2]
[312168300,1705677036327,-500.0,0.00027397,2]
[312168301,1705677036337,-500.0,0.00027397,2]
[312168302,1705677036347,-500.0,0.00027397,2]
[312168303,1705677036358,-500.0,0.00027397,2]
[312168304,1705677036380,-500.0,0.00027397,2]
[312168305,1705677036395,-152.65631685,0.00027397,2]
[312168306,1705677036407,-502.6959281,0.00027397,2]
[312168307,1705677036417,-500.0,0.00027397,2]
[312168308,1705677036428,-500.0,0.00027397,2]
[312168309,1705677036439,-500.72707164,0.00027397,2]
[312168310,1705677036450,-500.0,0.00027397,2]
[312168311,1705677036461,-500.0,0.00027397,2]
[312168312,1705677036472,-501.32970261,0.00027397,2]
[312168313,1705677036482,-500.0,0.00027397,2]
[312168314,1705677036493,-500.0,0.00027397,2]
[312168315,1705677036504,-500.0,0.00027397,2]
[312168316,1705677036514,-500.0,0.00027397,2]
[312168317,1705677036525,-500.0,0.00027397,2]
[312168318,1705677036535,-500.0,0.00027397,2]
[312168319,1705677036546,-500.0,0.00027397,2]
[312168320,1705677036556,-500.0,0.00027397,2]
[312168321,1705677036566,-500.0,0.00027397,2]
[312168322,1705677036577,-440.42890775,0.00027397,2]
[312168323,1705677036588,-500.0,0.00027397,2]
[312168324,1705677036599,-500.0,0.00027397,2]
[312168325,1705677036611,-500.0,0.00027397,2]
[312168326,1705677036622,-524.18602468,0.00027397,2]
[312168327,1705677036633,-1004.66,0.00027397,2]
[312168328,1705677036644,-500.0,0.00027397,2]
[312168329,1705677036654,-558.29816808,0.00027397,2]
[312168330,1705677036664,-500.0,0.00027397,2]
[312168331,1705677036675,-500.0,0.00027397,2]
[312168332,1705677036686,-502.91124872,0.00027397,2]
[312168333,1705677036697,-500.0,0.00027397,2]
[312168334,1705677036708,-500.0,0.00027397,2]
[312168335,1705677036718,-500.0,0.00027397,2]
[312168336,1705677036729,-500.0,0.00027397,2]
[312168337,1705677036739,-500.0,0.00027397,2]
[312168338,1705677036750,-500.0,0.00027397,2]
[312168339,1705677036760,-501.67829323,0.00027397,2]
[312168340,1705677036771,-500.0,0.00027397,2]
[312168341,1705677036781,-500.0,0.00027397,2]
[312168342,1705677036792,-521.78,0.00027397,2]
[312168343,1705677036802,-500.0,0.00027397,2]
[312168344,1705677036813,-500.0,0.00027397,2]
[312168345,1705677036823,-500.0,0.00027397,2]
[312168346,1705677036833,-500.0,0.00027397,2]